[Event "Titled Tuesday Blitz January 31 Late 2023"]
[White "Marczuk, Dominik"]
[Black "Mazibuko, Khanya"]
[WhiteFideId "1111264"]
[BlackFideId "14321041"]
[WhiteElo "2253"]
[BlackElo "1913"]
[Result "1-0"]
[Round "07"]
[TimeControl "180+2"]
[Date "2023.01.31"]
[WhiteClock "0:00:08"]
[BlackClock "0:00:46"]

1. e4 {[%clk 0:00:22]}  c5 {[%clk 0:02:58]} 2. Nf3 {[%clk 0:00:23]}  e6 {[%clk 0:02:57]} 3. d4 {[%clk 0:00:23]}  cxd4 {[%clk 0:02:56]} 4. Nxd4 {[%clk 0:00:24]}  a6 {[%clk 0:02:57]} 5. Bd3 {[%clk 0:00:25]}  Nf6 {[%clk 0:02:56]} 6. O-O {[%clk 0:00:25]}  Qc7 {[%clk 0:02:56]} 7. f4 {[%clk 0:00:25]}  Bc5 {[%clk 0:02:42]} 8. c3 {[%clk 0:00:25]}  Qb6 {[%clk 0:02:40]} 9. Kh1 {[%clk 0:00:25]}  Bxd4 {[%clk 0:02:24]} 10. cxd4 {[%clk 0:00:26]}  Qxd4 {[%clk 0:02:24]} 11. Na3 {[%clk 0:00:20]}  Nc6 {[%clk 0:02:18]} 12. Nc4 {[%clk 0:00:19]}  Qc5 {[%clk 0:02:04]} 13. Be3 {[%clk 0:00:19]}  Qh5 {[%clk 0:01:55]} 14. Be2 {[%clk 0:00:17]}  Qg6 {[%clk 0:01:55]} 15. e5 {[%clk 0:00:17]}  Nd5 {[%clk 0:01:43]} 16. Nd6+ {[%clk 0:00:17]}  Kd8 {[%clk 0:01:32]} 17. Bc5 {[%clk 0:00:15]}  f5 {[%clk 0:01:28]} 18. Bc4 {[%clk 0:00:12]}  Nce7 {[%clk 0:01:21]} 19. Qd2 {[%clk 0:00:10]}  b5 {[%clk 0:01:19]} 20. Qa5+ {[%clk 0:00:10]}  Nc7 {[%clk 0:01:17]} 21. Bb6 {[%clk 0:00:10]}  Nd5 {[%clk 0:01:13]} 22. Bxd5 {[%clk 0:00:11]}  exd5 {[%clk 0:01:12]} 23. Bxc7+ {[%clk 0:00:11]}  Ke7 {[%clk 0:01:12]} 24. Qb4 {[%clk 0:00:11]}  Ke6 {[%clk 0:01:11]} 25. Rac1 {[%clk 0:00:07]}  Qg4 {[%clk 0:00:54]} 26. Rfd1 {[%clk 0:00:07]}  g5 {[%clk 0:00:53]} 27. Qd4 {[%clk 0:00:06]}  Qxf4 {[%clk 0:00:51]} 28. Qxd5+ {[%clk 0:00:06]}  Ke7 {[%clk 0:00:50]} 29. Nxc8+ {[%clk 0:00:05]}  Rhxc8 {[%clk 0:00:47]} 30. Qxd7+ {[%clk 0:00:06]}  Kf8 {[%clk 0:00:47]} 31. Bd6+ {[%clk 0:00:06]}  Kg8 {[%clk 0:00:47]} 32. Rxc8+ {[%clk 0:00:07]}  Rxc8 {[%clk 0:00:46]} 33. Qxc8+ {[%clk 0:00:08]} 1-0


[Site "https://www.chess.com"]

[Event "Titled Tuesday Blitz January 31 Late 2023"]
[White "Travadon, Loic"]
[Black "Gomes, Luiz Alexandre de Souza"]
[WhiteFideId "26092131"]
[BlackFideId "2102790"]
[WhiteElo "2461"]
[BlackElo "2254"]
[Result "1-0"]
[Round "07"]
[TimeControl "180+2"]
[Date "2023.01.31"]
[WhiteClock "0:01:04"]
[BlackClock "0:01:14"]

1. e4 {[%clk 0:02:58]}  c5 {[%clk 0:02:59]} 2. Nf3 {[%clk 0:02:56]}  d6 {[%clk 0:02:59]} 3. d4 {[%clk 0:02:55]}  cxd4 {[%clk 0:02:59]} 4. Nxd4 {[%clk 0:02:56]}  Nf6 {[%clk 0:02:59]} 5. Nc3 {[%clk 0:02:56]}  e6 {[%clk 0:02:59]} 6. Be2 {[%clk 0:02:55]}  Be7 {[%clk 0:02:59]} 7. Be3 {[%clk 0:02:55]}  a6 {[%clk 0:02:58]} 8. g4 {[%clk 0:02:51]}  h6 {[%clk 0:02:58]} 9. h4 {[%clk 0:02:49]}  Qc7 {[%clk 0:02:56]} 10. Qd2 {[%clk 0:02:46]}  Nbd7 {[%clk 0:02:55]} 11. O-O-O {[%clk 0:02:44]}  Ne5 {[%clk 0:02:54]} 12. g5 {[%clk 0:02:40]}  Nfg4 {[%clk 0:02:51]} 13. Bxg4 {[%clk 0:02:36]}  Nxg4 {[%clk 0:02:51]} 14. Rdg1 {[%clk 0:02:34]}  Nxe3 {[%clk 0:02:51]} 15. Qxe3 {[%clk 0:02:31]}  Bd7 {[%clk 0:02:42]} 16. f4 {[%clk 0:02:20]}  O-O-O {[%clk 0:02:41]} 17. f5 {[%clk 0:02:12]}  hxg5 {[%clk 0:02:34]} 18. hxg5 {[%clk 0:02:11]}  Kb8 {[%clk 0:02:31]} 19. g6 {[%clk 0:02:06]}  Rxh1 {[%clk 0:02:31]} 20. Rxh1 {[%clk 0:02:06]}  exf5 {[%clk 0:02:31]} 21. exf5 {[%clk 0:02:04]}  Bc6 {[%clk 0:02:02]} 22. Re1 {[%clk 0:01:41]}  Bh4 {[%clk 0:01:57]} 23. Re2 {[%clk 0:01:29]}  fxg6 {[%clk 0:01:56]} 24. Nxc6+ {[%clk 0:01:27]}  Qxc6 {[%clk 0:01:55]} 25. fxg6 {[%clk 0:01:27]}  Rc8 {[%clk 0:01:39]} 26. Qe4 {[%clk 0:01:18]}  Bg5+ {[%clk 0:01:37]} 27. Kd1 {[%clk 0:01:16]}  Qc5 {[%clk 0:01:36]} 28. Nd5 {[%clk 0:01:07]}  Rf8 {[%clk 0:01:28]} 29. c3 {[%clk 0:01:05]}  Rf1+ {[%clk 0:01:24]} 30. Kc2 {[%clk 0:01:04]}  Rc1+ {[%clk 0:01:18]} 31. Kb3 {[%clk 0:01:05]}  Qb5+ {[%clk 0:01:18]} 32. Nb4 {[%clk 0:01:05]}  a5 {[%clk 0:01:14]} 33. Qe8+ {[%clk 0:01:05]}  Ka7 {[%clk 0:01:14]} 34. Qxb5 {[%clk 0:01:04]} 1-0


[Site "https://www.chess.com"]

[Event "Titled Tuesday Blitz January 31 Late 2023"]
[White "Deviprasath, Sharvesh"]
[Black "Itkis, Boris"]
[WhiteFideId "30938228"]
[BlackFideId "1209167"]
[WhiteElo "2296"]
[BlackElo "2329"]
[Result "1-0"]
[Round "07"]
[TimeControl "180+2"]
[Date "2023.01.31"]
[WhiteClock "0:00:34"]
[BlackClock "0:01:35"]

1. c4 {[%clk 0:02:40]}  c5 {[%clk 0:02:58]} 2. Nf3 {[%clk 0:02:39]}  Nc6 {[%clk 0:02:58]} 3. Nc3 {[%clk 0:02:40]}  g6 {[%clk 0:02:58]} 4. e3 {[%clk 0:02:32]}  Nf6 {[%clk 0:02:56]} 5. d4 {[%clk 0:02:33]}  cxd4 {[%clk 0:02:56]} 6. exd4 {[%clk 0:02:34]}  d5 {[%clk 0:02:57]} 7. cxd5 {[%clk 0:02:27]}  Nxd5 {[%clk 0:02:56]} 8. Bc4 {[%clk 0:02:28]}  Nxc3 {[%clk 0:02:56]} 9. Qb3 {[%clk 0:02:27]}  Nd5 {[%clk 0:02:57]} 10. Bxd5 {[%clk 0:02:27]}  e6 {[%clk 0:02:57]} 11. Bxc6+ {[%clk 0:02:27]}  bxc6 {[%clk 0:02:58]} 12. O-O {[%clk 0:02:24]}  Qd5 {[%clk 0:02:52]} 13. Qe3 {[%clk 0:02:23]}  f6 {[%clk 0:02:51]} 14. b3 {[%clk 0:01:34]}  Kf7 {[%clk 0:02:49]} 15. Re1 {[%clk 0:01:03]}  a5 {[%clk 0:02:47]} 16. Qf4 {[%clk 0:01:01]}  Bd6 {[%clk 0:02:44]} 17. Ne5+ {[%clk 0:00:59]}  Ke7 {[%clk 0:02:22]} 18. Qh6 {[%clk 0:00:48]}  fxe5 {[%clk 0:01:40]} 19. Qg7+ {[%clk 0:00:37]}  Kd8 {[%clk 0:01:39]} 20. Bg5+ {[%clk 0:00:36]}  Ke8 {[%clk 0:01:35]} 21. Qxh8+ {[%clk 0:00:34]} 1-0


[Site "https://www.chess.com"]

[Event "Titled Tuesday Blitz January 31 Late 2023"]
[White "Alfaro, William"]
[Black "Buchenau, Frank"]
[WhiteFideId "6100457"]
[BlackFideId "4604350"]
[WhiteElo "2134"]
[BlackElo "2222"]
[Result "1-0"]
[Round "07"]
[TimeControl "180+2"]
[Date "2023.01.31"]
[WhiteClock "0:00:19"]
[BlackClock "0:00:01"]

1. e4 {[%clk 0:03:00]}  e6 {[%clk 0:02:59]} 2. d4 {[%clk 0:02:59]}  d5 {[%clk 0:02:59]} 3. e5 {[%clk 0:02:57]}  c5 {[%clk 0:02:58]} 4. c3 {[%clk 0:02:57]}  Qb6 {[%clk 0:02:58]} 5. Bd3 {[%clk 0:02:56]}  Bd7 {[%clk 0:02:50]} 6. Ne2 {[%clk 0:02:53]}  Nc6 {[%clk 0:02:44]} 7. O-O {[%clk 0:02:31]}  cxd4 {[%clk 0:02:42]} 8. cxd4 {[%clk 0:02:32]}  Nb4 {[%clk 0:02:40]} 9. Nbc3 {[%clk 0:02:23]}  Nxd3 {[%clk 0:02:40]} 10. Qxd3 {[%clk 0:02:24]}  Ne7 {[%clk 0:02:38]} 11. f4 {[%clk 0:02:22]}  h5 {[%clk 0:02:32]} 12. Kh1 {[%clk 0:02:21]}  Nf5 {[%clk 0:02:31]} 13. g3 {[%clk 0:02:21]}  Be7 {[%clk 0:02:26]} 14. Kg2 {[%clk 0:02:11]}  Rc8 {[%clk 0:02:12]} 15. Rb1 {[%clk 0:02:10]}  h4 {[%clk 0:02:01]} 16. g4 {[%clk 0:02:03]}  h3+ {[%clk 0:02:01]} 17. Kh1 {[%clk 0:01:58]}  Nh4 {[%clk 0:01:55]} 18. Qxh3 {[%clk 0:01:57]}  Bb5 {[%clk 0:01:44]} 19. f5 {[%clk 0:01:54]}  Bxe2 {[%clk 0:01:39]} 20. Nxe2 {[%clk 0:01:54]}  Rc2 {[%clk 0:01:37]} 21. fxe6 {[%clk 0:01:47]}  Rxe2 {[%clk 0:01:26]} 22. exf7+ {[%clk 0:01:46]}  Kf8 {[%clk 0:01:23]} 23. g5 {[%clk 0:01:46]}  Rxh2+ {[%clk 0:01:02]} 24. Qxh2 {[%clk 0:01:29]}  Ng6 {[%clk 0:01:01]} 25. Be3 {[%clk 0:01:29]}  Rxh2+ {[%clk 0:00:59]} 26. Kxh2 {[%clk 0:01:30]}  Qb5 {[%clk 0:00:36]} 27. Rbc1 {[%clk 0:01:19]}  Bd8 {[%clk 0:00:21]} 28. Rf2 {[%clk 0:01:14]}  Qd7 {[%clk 0:00:15]} 29. Kg3 {[%clk 0:01:12]}  Ke7 {[%clk 0:00:13]} 30. Rh1 {[%clk 0:01:07]}  Nf8 {[%clk 0:00:13]} 31. Rh8 {[%clk 0:01:06]}  Qb5 {[%clk 0:00:12]} 32. g6 {[%clk 0:01:02]}  Qd3 {[%clk 0:00:12]} 33. Rf3 {[%clk 0:00:53]}  Qxg6+ {[%clk 0:00:11]} 34. Kf2 {[%clk 0:00:53]}  Qc2+ {[%clk 0:00:10]} 35. Kg3 {[%clk 0:00:52]}  Qg6+ {[%clk 0:00:10]} 36. Kh2 {[%clk 0:00:52]}  Ne6 {[%clk 0:00:10]} 37. f8=Q+ {[%clk 0:00:48]}  Nxf8 {[%clk 0:00:10]} 38. Rhxf8 {[%clk 0:00:49]}  Qh5+ {[%clk 0:00:08]} 39. Kg2 {[%clk 0:00:48]}  Qg6+ {[%clk 0:00:08]} 40. Rg3 {[%clk 0:00:48]}  Qc2+ {[%clk 0:00:07]} 41. Rf2 {[%clk 0:00:48]}  Qe4+ {[%clk 0:00:07]} 42. Kh2 {[%clk 0:00:44]}  g6 {[%clk 0:00:05]} 43. Rf4 {[%clk 0:00:36]}  Qc2+ {[%clk 0:00:04]} 44. Rf2 {[%clk 0:00:37]}  Qe4 {[%clk 0:00:04]} 45. Bg5+ {[%clk 0:00:37]}  Ke8 {[%clk 0:00:03]} 46. Bxd8 {[%clk 0:00:31]}  Kxd8 {[%clk 0:00:04]} 47. Rd2 {[%clk 0:00:29]}  Qh4+ {[%clk 0:00:03]} 48. Kg2 {[%clk 0:00:28]}  Qe4+ {[%clk 0:00:03]} 49. Kh3 {[%clk 0:00:26]}  Qf5+ {[%clk 0:00:03]} 50. Kh2 {[%clk 0:00:23]}  Ke7 {[%clk 0:00:02]} 51. Rdg2 {[%clk 0:00:19]}  Qh5+ {[%clk 0:00:01]} 52. Rh3 {[%clk 0:00:19]} 1-0


[Site "https://www.chess.com"]

[Event "Titled Tuesday Blitz January 31 Late 2023"]
[White "Osmonbekov, Talaibek"]
[Black "Forgacs, Attila Jr."]
[WhiteFideId "2017253"]
[BlackFideId "773654"]
[WhiteElo "2137"]
[BlackElo "2264"]
[Result "1-0"]
[Round "07"]
[TimeControl "180+2"]
[Date "2023.01.31"]
[WhiteClock "0:00:15"]
[BlackClock "0:00:02"]

1. d4 {[%clk 0:03:00]}  Nf6 {[%clk 0:02:59]} 2. Bf4 {[%clk 0:03:01]}  g6 {[%clk 0:02:57]} 3. Nc3 {[%clk 0:03:01]}  d5 {[%clk 0:02:56]} 4. e3 {[%clk 0:03:01]}  Bg7 {[%clk 0:02:57]} 5. h4 {[%clk 0:03:02]}  h5 {[%clk 0:02:57]} 6. Nf3 {[%clk 0:03:01]}  O-O {[%clk 0:02:57]} 7. Ne5 {[%clk 0:03:01]}  c5 {[%clk 0:02:57]} 8. f3 {[%clk 0:03:00]}  Nc6 {[%clk 0:02:48]} 9. Qd2 {[%clk 0:02:59]}  Bf5 {[%clk 0:02:28]} 10. Bd3 {[%clk 0:02:31]}  Bxd3 {[%clk 0:02:26]} 11. Qxd3 {[%clk 0:02:31]}  Rc8 {[%clk 0:01:39]} 12. O-O-O {[%clk 0:02:24]}  c4 {[%clk 0:01:35]} 13. Qd2 {[%clk 0:02:12]}  Qa5 {[%clk 0:01:32]} 14. Kb1 {[%clk 0:02:10]}  b5 {[%clk 0:01:32]} 15. Nxc6 {[%clk 0:01:50]}  Rxc6 {[%clk 0:01:26]} 16. Nxd5 {[%clk 0:01:50]}  Qd8 {[%clk 0:01:10]} 17. Nxf6+ {[%clk 0:01:38]}  Bxf6 {[%clk 0:01:11]} 18. Qb4 {[%clk 0:01:21]}  Qb6 {[%clk 0:01:06]} 19. d5 {[%clk 0:00:55]}  a5 {[%clk 0:01:01]} 20. Qe1 {[%clk 0:00:53]}  Rc5 {[%clk 0:00:54]} 21. e4 {[%clk 0:00:52]}  b4 {[%clk 0:00:51]} 22. e5 {[%clk 0:00:48]}  Bg7 {[%clk 0:00:49]} 23. Be3 {[%clk 0:00:48]}  c3 {[%clk 0:00:35]} 24. Qf2 {[%clk 0:00:36]}  Rfc8 {[%clk 0:00:32]} 25. Bxc5 {[%clk 0:00:35]}  Rxc5 {[%clk 0:00:31]} 26. d6 {[%clk 0:00:35]}  exd6 {[%clk 0:00:26]} 27. exd6 {[%clk 0:00:36]}  cxb2 {[%clk 0:00:15]} 28. d7 {[%clk 0:00:35]}  Bf6 {[%clk 0:00:14]} 29. d8=Q+ {[%clk 0:00:29]}  Bxd8 {[%clk 0:00:13]} 30. Rxd8+ {[%clk 0:00:29]}  Kh7 {[%clk 0:00:14]} 31. Rd7 {[%clk 0:00:25]}  b3 {[%clk 0:00:12]} 32. axb3 {[%clk 0:00:21]}  a4 {[%clk 0:00:12]} 33. Rxf7+ {[%clk 0:00:18]}  Kg8 {[%clk 0:00:12]} 34. Rf6 {[%clk 0:00:18]}  Qxf6 {[%clk 0:00:05]} 35. Qxc5 {[%clk 0:00:17]}  a3 {[%clk 0:00:02]} 36. Qxa3 {[%clk 0:00:17]}  Qc3 {[%clk 0:00:02]} 37. Qxb2 {[%clk 0:00:17]}  Qd2 {[%clk 0:00:01]} 38. Qe5 {[%clk 0:00:16]}  Qxg2 {[%clk 0:00:01]} 39. Re1 {[%clk 0:00:16]}  Qh3 {[%clk 0:00:01]} 40. Qe8+ {[%clk 0:00:16]}  Kg7 {[%clk 0:00:01]} 41. Qe7+ {[%clk 0:00:16]}  Kg8 {[%clk 0:00:02]} 42. Qe6+ {[%clk 0:00:16]}  Kf8 {[%clk 0:00:02]} 43. Qxh3 {[%clk 0:00:15]} 1-0


[Site "https://www.chess.com"]

[Event "Titled Tuesday Blitz January 31 Late 2023"]
[White "Bouget, Alexandre"]
[Black "ritanovikova"]
[WhiteFideId "681318"]
[WhiteElo "2267"]
[BlackElo "2217"]
[Result "1-0"]
[Round "07"]
[TimeControl "180+2"]
[Date "2023.01.31"]
[WhiteClock "0:01:38"]
[BlackClock "0:00:54"]

1. d4 {[%clk 0:03:00]}  e6 {[%clk 0:02:57]} 2. c4 {[%clk 0:02:50]}  Nf6 {[%clk 0:02:57]} 3. Nc3 {[%clk 0:02:49]}  Bb4 {[%clk 0:02:57]} 4. a3 {[%clk 0:02:48]}  Bxc3+ {[%clk 0:02:56]} 5. bxc3 {[%clk 0:02:49]}  c5 {[%clk 0:02:56]} 6. f3 {[%clk 0:02:49]}  cxd4 {[%clk 0:02:53]} 7. cxd4 {[%clk 0:02:48]}  d5 {[%clk 0:02:54]} 8. e3 {[%clk 0:02:46]}  O-O {[%clk 0:02:52]} 9. cxd5 {[%clk 0:02:43]}  exd5 {[%clk 0:02:50]} 10. Bd3 {[%clk 0:02:44]}  Nc6 {[%clk 0:02:48]} 11. Ne2 {[%clk 0:02:43]}  Be6 {[%clk 0:02:42]} 12. O-O {[%clk 0:02:44]}  Qd7 {[%clk 0:02:42]} 13. Ra2 {[%clk 0:02:39]}  Bf5 {[%clk 0:02:41]} 14. Ng3 {[%clk 0:02:37]}  Bxd3 {[%clk 0:02:34]} 15. Qxd3 {[%clk 0:02:38]}  Rfe8 {[%clk 0:02:30]} 16. Re2 {[%clk 0:02:37]}  Re7 {[%clk 0:02:26]} 17. Nf5 {[%clk 0:02:36]}  Re6 {[%clk 0:02:23]} 18. e4 {[%clk 0:02:36]}  dxe4 {[%clk 0:02:20]} 19. fxe4 {[%clk 0:02:35]}  Rae8 {[%clk 0:02:09]} 20. Qg3 {[%clk 0:02:06]}  Nh5 {[%clk 0:01:49]} 21. Qg4 {[%clk 0:01:50]}  Nxd4 {[%clk 0:01:33]} 22. Ref2 {[%clk 0:01:45]}  Rxe4 {[%clk 0:01:12]} 23. Nh6+ {[%clk 0:01:43]}  Kh8 {[%clk 0:01:04]} 24. Qxd7 {[%clk 0:01:39]}  gxh6 {[%clk 0:00:54]} 25. Bb2 {[%clk 0:01:38]} 1-0


[Site "https://www.chess.com"]

[Event "Titled Tuesday Blitz January 31 Late 2023"]
[White "Llanos, Guillermo"]
[Black "Desideri, Ricardo Maruchi"]
[WhiteFideId "100358"]
[BlackFideId "2110440"]
[WhiteElo "2290"]
[BlackElo "1959"]
[Result "1-0"]
[Round "07"]
[TimeControl "180+2"]
[Date "2023.01.31"]
[WhiteClock "0:01:50"]
[BlackClock "0:00:34"]

1. d4 {[%clk 0:02:53]}  Nf6 {[%clk 0:02:58]} 2. c4 {[%clk 0:02:53]}  c5 {[%clk 0:02:59]} 3. d5 {[%clk 0:02:52]}  e6 {[%clk 0:02:59]} 4. Nc3 {[%clk 0:02:51]}  exd5 {[%clk 0:03:00]} 5. cxd5 {[%clk 0:02:52]}  d6 {[%clk 0:03:00]} 6. e4 {[%clk 0:02:52]}  g6 {[%clk 0:03:01]} 7. h3 {[%clk 0:02:52]}  Bg7 {[%clk 0:03:01]} 8. Bd3 {[%clk 0:02:51]}  O-O {[%clk 0:03:01]} 9. Bg5 {[%clk 0:02:52]}  Nbd7 {[%clk 0:02:59]} 10. Nf3 {[%clk 0:02:52]}  a6 {[%clk 0:02:58]} 11. a4 {[%clk 0:02:51]}  Re8 {[%clk 0:02:52]} 12. O-O {[%clk 0:02:50]}  Qe7 {[%clk 0:02:52]} 13. Re1 {[%clk 0:02:48]}  Qf8 {[%clk 0:02:52]} 14. a5 {[%clk 0:02:39]}  h6 {[%clk 0:02:38]} 15. Bd2 {[%clk 0:02:38]}  Kh7 {[%clk 0:02:29]} 16. Na4 {[%clk 0:02:34]}  c4 {[%clk 0:02:20]} 17. Bc2 {[%clk 0:02:31]}  Rb8 {[%clk 0:02:05]} 18. Bb4 {[%clk 0:02:10]}  b5 {[%clk 0:01:56]} 19. axb6 {[%clk 0:01:58]}  Nxb6 {[%clk 0:01:56]} 20. e5 {[%clk 0:01:57]}  Nfxd5 {[%clk 0:01:51]} 21. Bxd6 {[%clk 0:01:55]}  Qg8 {[%clk 0:00:41]} 22. Bxb8 {[%clk 0:01:54]}  Nxa4 {[%clk 0:00:38]} 23. Bxa4 {[%clk 0:01:52]}  Nf4 {[%clk 0:00:34]} 24. Bxe8 {[%clk 0:01:50]} 1-0


[Site "https://www.chess.com"]

[Event "Titled Tuesday Blitz January 31 Late 2023"]
[White "Gerbelli Neto, Eduardo"]
[Black "Good, Daniel"]
[WhiteFideId "2103281"]
[BlackFideId "1302388"]
[WhiteElo "2114"]
[BlackElo "2141"]
[Result "1-0"]
[Round "07"]
[TimeControl "180+2"]
[Date "2023.01.31"]
[WhiteClock "0:02:38"]
[BlackClock "0:02:07"]

1. e4 {[%clk 0:03:00]}  c6 {[%clk 0:02:57]} 2. d4 {[%clk 0:03:00]}  d5 {[%clk 0:02:52]} 3. exd5 {[%clk 0:03:01]}  cxd5 {[%clk 0:02:53]} 4. c4 {[%clk 0:03:01]}  Nf6 {[%clk 0:02:52]} 5. Nc3 {[%clk 0:03:01]}  Nc6 {[%clk 0:02:50]} 6. Nf3 {[%clk 0:03:01]}  Bg4 {[%clk 0:02:45]} 7. cxd5 {[%clk 0:03:00]}  Nxd5 {[%clk 0:02:41]} 8. Qb3 {[%clk 0:03:01]}  e6 {[%clk 0:02:38]} 9. Qxb7 {[%clk 0:02:57]}  Rc8 {[%clk 0:02:33]} 10. Bb5 {[%clk 0:02:55]}  Qc7 {[%clk 0:02:07]} 11. Qxc7 {[%clk 0:02:38]}  Rxc7 {[%clk 0:02:07]} 12. Ne5 {[%clk 0:02:38]} 1-0


[Site "https://www.chess.com"]

[Event "Titled Tuesday Blitz January 31 Late 2023"]
[White "Tinmaz, Kerem"]
[Black "Almedina Ortiz, Edgardo J."]
[WhiteFideId "44559151"]
[BlackFideId "3100197"]
[WhiteElo "2177"]
[BlackElo "2156"]
[Result "1-0"]
[Round "07"]
[TimeControl "180+2"]
[Date "2023.01.31"]
[WhiteClock "0:00:25"]
[BlackClock "0:00:01"]

1. e4 {[%clk 0:03:00]}  c5 {[%clk 0:02:58]} 2. Nc3 {[%clk 0:02:59]}  e6 {[%clk 0:02:53]} 3. Nf3 {[%clk 0:02:59]}  Nc6 {[%clk 0:02:52]} 4. d4 {[%clk 0:02:59]}  cxd4 {[%clk 0:02:52]} 5. Nxd4 {[%clk 0:03:00]}  Qc7 {[%clk 0:02:52]} 6. Be3 {[%clk 0:03:00]}  a6 {[%clk 0:02:51]} 7. Bd3 {[%clk 0:03:00]}  Nf6 {[%clk 0:02:50]} 8. O-O {[%clk 0:02:59]}  Nxd4 {[%clk 0:02:40]} 9. Bxd4 {[%clk 0:02:59]}  Bc5 {[%clk 0:02:40]} 10. Bxc5 {[%clk 0:02:56]}  Qxc5 {[%clk 0:02:40]} 11. Qe2 {[%clk 0:02:55]}  d6 {[%clk 0:02:39]} 12. Rfe1 {[%clk 0:02:51]}  b5 {[%clk 0:02:29]} 13. Qe3 {[%clk 0:02:36]}  Qxe3 {[%clk 0:02:10]} 14. Rxe3 {[%clk 0:02:37]}  e5 {[%clk 0:02:10]} 15. a4 {[%clk 0:02:09]}  b4 {[%clk 0:02:07]} 16. Nd5 {[%clk 0:01:59]}  Nxd5 {[%clk 0:02:03]} 17. exd5 {[%clk 0:02:00]}  Bb7 {[%clk 0:01:38]} 18. Bc4 {[%clk 0:01:43]}  Rc8 {[%clk 0:01:30]} 19. b3 {[%clk 0:01:42]}  O-O {[%clk 0:01:21]} 20. a5 {[%clk 0:01:40]}  f5 {[%clk 0:01:14]} 21. Ra4 {[%clk 0:01:36]}  Rc5 {[%clk 0:01:11]} 22. Rd3 {[%clk 0:01:16]}  Bc8 {[%clk 0:00:46]} 23. g3 {[%clk 0:00:56]}  f4 {[%clk 0:00:34]} 24. h4 {[%clk 0:00:39]}  Bd7 {[%clk 0:00:17]} 25. Rxb4 {[%clk 0:00:39]}  Rxa5 {[%clk 0:00:16]} 26. Rb6 {[%clk 0:00:35]}  Ra1+ {[%clk 0:00:14]} 27. Kg2 {[%clk 0:00:36]}  f3+ {[%clk 0:00:13]} 28. Kh2 {[%clk 0:00:28]}  Rf1 {[%clk 0:00:12]} 29. Rd2 {[%clk 0:00:28]}  Rc1 {[%clk 0:00:07]} 30. Rxd6 {[%clk 0:00:28]}  Bf5 {[%clk 0:00:06]} 31. Rxa6 {[%clk 0:00:25]}  Bxc2 {[%clk 0:00:05]} 32. d6+ {[%clk 0:00:24]}  Kh8 {[%clk 0:00:04]} 33. d7 {[%clk 0:00:24]}  Rd8 {[%clk 0:00:01]} 34. Rc6 {[%clk 0:00:25]} 1-0


[Site "https://www.chess.com"]

[Event "Titled Tuesday Blitz January 31 Late 2023"]
[White "Fiorito, Francisco"]
[Black "rikchessmx"]
[WhiteFideId "180165"]
[WhiteElo "2305"]
[BlackElo "2287"]
[Result "1-0"]
[Round "07"]
[TimeControl "180+2"]
[Date "2023.01.31"]
[WhiteClock "0:02:04"]
[BlackClock "0:00:20"]

1. d4 {[%clk 0:03:00]}  Nf6 {[%clk 0:02:53]} 2. Nc3 {[%clk 0:03:00]}  e6 {[%clk 0:02:52]} 3. Bf4 {[%clk 0:02:57]}  c5 {[%clk 0:02:44]} 4. d5 {[%clk 0:02:49]}  d6 {[%clk 0:02:40]} 5. dxe6 {[%clk 0:02:46]}  fxe6 {[%clk 0:02:36]} 6. e4 {[%clk 0:02:45]}  e5 {[%clk 0:02:37]} 7. Bg5 {[%clk 0:02:43]}  Nc6 {[%clk 0:02:35]} 8. Bc4 {[%clk 0:02:41]}  Nd4 {[%clk 0:02:20]} 9. Nge2 {[%clk 0:02:38]}  Be7 {[%clk 0:02:16]} 10. O-O {[%clk 0:02:34]}  Be6 {[%clk 0:01:00]} 11. Bxe6 {[%clk 0:02:08]}  Nxe6 {[%clk 0:00:59]} 12. Bxf6 {[%clk 0:02:09]}  Bxf6 {[%clk 0:00:58]} 13. Nd5 {[%clk 0:02:09]}  O-O {[%clk 0:00:56]} 14. Ng3 {[%clk 0:02:07]}  Rc8 {[%clk 0:00:54]} 15. c3 {[%clk 0:02:07]}  b5 {[%clk 0:00:52]} 16. Nh5 {[%clk 0:02:06]}  Be7 {[%clk 0:00:47]} 17. Qg4 {[%clk 0:02:05]}  Qd7 {[%clk 0:00:20]} 18. Nxg7 {[%clk 0:02:04]} 1-0


[Site "https://www.chess.com"]

[Event "Titled Tuesday Blitz January 31 Late 2023"]
[White "Chabris, Christopher"]
[Black "Wilson, Elvin"]
[WhiteFideId "2005263"]
[BlackFideId "2014874"]
[WhiteElo "2053"]
[BlackElo "2183"]
[Result "1-0"]
[Round "07"]
[TimeControl "180+2"]
[Date "2023.01.31"]
[WhiteClock "0:00:02"]
[BlackClock "0:00:11"]

1. e4 {[%clk 0:03:00]}  e6 {[%clk 0:02:35]} 2. d4 {[%clk 0:03:00]}  d5 {[%clk 0:02:35]} 3. Nc3 {[%clk 0:03:00]}  Bb4 {[%clk 0:02:34]} 4. e5 {[%clk 0:03:00]}  c5 {[%clk 0:02:34]} 5. a3 {[%clk 0:03:01]}  Bxc3+ {[%clk 0:02:34]} 6. bxc3 {[%clk 0:03:01]}  Ne7 {[%clk 0:02:34]} 7. h4 {[%clk 0:03:01]}  Qc7 {[%clk 0:02:33]} 8. h5 {[%clk 0:02:58]}  h6 {[%clk 0:02:31]} 9. Rb1 {[%clk 0:02:46]}  b6 {[%clk 0:02:28]} 10. Bb5+ {[%clk 0:02:44]}  Bd7 {[%clk 0:02:27]} 11. Bd3 {[%clk 0:02:41]}  c4 {[%clk 0:02:18]} 12. Be2 {[%clk 0:02:39]}  Ba4 {[%clk 0:02:17]} 13. Nh3 {[%clk 0:02:32]}  Nbc6 {[%clk 0:02:12]} 14. Nf4 {[%clk 0:02:30]}  O-O-O {[%clk 0:02:09]} 15. g4 {[%clk 0:02:19]}  Kb7 {[%clk 0:02:01]} 16. Bf3 {[%clk 0:02:18]}  a5 {[%clk 0:01:51]} 17. Qe2 {[%clk 0:02:12]}  Na7 {[%clk 0:01:29]} 18. O-O {[%clk 0:02:10]}  Nb5 {[%clk 0:01:29]} 19. Qe3 {[%clk 0:02:05]}  Ka6 {[%clk 0:01:26]} 20. Be2 {[%clk 0:01:58]}  Rdg8 {[%clk 0:01:23]} 21. Kh1 {[%clk 0:01:49]}  Qc8 {[%clk 0:01:22]} 22. Rg1 {[%clk 0:01:45]}  Bxc2 {[%clk 0:01:08]} 23. Ra1 {[%clk 0:01:17]}  a4 {[%clk 0:01:06]} 24. Bd2 {[%clk 0:01:08]}  Bb3 {[%clk 0:01:01]} 25. Nh3 {[%clk 0:00:52]}  f6 {[%clk 0:00:52]} 26. f4 {[%clk 0:00:51]}  f5 {[%clk 0:00:45]} 27. g5 {[%clk 0:00:41]}  g6 {[%clk 0:00:45]} 28. Rg3 {[%clk 0:00:32]}  Qe8 {[%clk 0:00:38]} 29. Rag1 {[%clk 0:00:30]}  hxg5 {[%clk 0:00:35]} 30. Rxg5 {[%clk 0:00:28]}  gxh5 {[%clk 0:00:35]} 31. Bc1 {[%clk 0:00:22]}  Bc2 {[%clk 0:00:33]} 32. Qg3 {[%clk 0:00:18]}  Be4+ {[%clk 0:00:31]} 33. Bf3 {[%clk 0:00:18]}  h4 {[%clk 0:00:28]} 34. Qf2 {[%clk 0:00:17]}  Nxc3 {[%clk 0:00:25]} 35. Bxe4 {[%clk 0:00:15]}  Nxe4 {[%clk 0:00:24]} 36. Qb2 {[%clk 0:00:15]}  Ng3+ {[%clk 0:00:23]} 37. Kh2 {[%clk 0:00:14]}  Qb5 {[%clk 0:00:22]} 38. Qc2 {[%clk 0:00:13]}  Qb3 {[%clk 0:00:22]} 39. Qf2 {[%clk 0:00:10]}  Ne4 {[%clk 0:00:20]} 40. Qe1 {[%clk 0:00:08]}  Rxg5 {[%clk 0:00:20]} 41. Nxg5 {[%clk 0:00:08]}  Ng6 {[%clk 0:00:20]} 42. Nxe6 {[%clk 0:00:07]}  Ne7 {[%clk 0:00:14]} 43. Nc7+ {[%clk 0:00:07]}  Kb7 {[%clk 0:00:14]} 44. Ne6 {[%clk 0:00:07]}  Rg8 {[%clk 0:00:13]} 45. Rxg8 {[%clk 0:00:07]}  Nxg8 {[%clk 0:00:13]} 46. Be3 {[%clk 0:00:06]}  Qc2+ {[%clk 0:00:12]} 47. Kh3 {[%clk 0:00:05]}  Qd3 {[%clk 0:00:11]} 48. Qg1 {[%clk 0:00:04]}  Ne7 {[%clk 0:00:10]} 49. Kxh4 {[%clk 0:00:03]}  c3 {[%clk 0:00:10]} 50. Qg7 {[%clk 0:00:02]}  Qxe3 {[%clk 0:00:10]} 51. Qxe7+ {[%clk 0:00:02]}  Ka6 {[%clk 0:00:11]} 52. Nc7+ {[%clk 0:00:02]}  Ka5 {[%clk 0:00:11]} 53. Qb4# {[%clk 0:00:02]} 1-0


[Site "https://www.chess.com"]